lending/lending_fUSD_20250121
["ID","MTS","AMOUNT","RATE_DAILY","PERIOD"]
[349770291,1737419442642,-1112.81,0.00020519,2]
[349770292,1737419442652,-847.73,0.00020519,2]
[349770293,1737419442661,-2428.48,0.00020519,2]
[349770294,1737419442671,-1119.66,0.00020519,2]
[349770295,1737419442681,-1036.96,0.00020519,2]
[349770296,1737419442690,-500.0,0.00020519,2]
[349770297,1737419442699,-1562.21,0.00020519,2]
[349770298,1737419442708,-1000.0,0.00020519,2]
[349770299,1737419442718,-1223.32,0.00020519,2]
[349770300,1737419442727,-500.0,0.00020519,2]
[349770301,1737419442736,-546.59,0.00020519,2]
[349770302,1737419442745,-1208.2,0.00020519,2]
[349770303,1737419442755,-500.0,0.00020519,2]
[349770304,1737419442764,-1831.04,0.00020519,2]
[349770305,1737419442773,-500.0,0.00020519,2]
[349770306,1737419442783,-500.0,0.00020519,2]
[349770307,1737419442793,-500.0,0.00020519,2]
[349770308,1737419442802,-1465.95,0.00020519,2]
[349770309,1737419442812,-1779.14,0.00020519,2]
[349770310,1737419442821,-500.0,0.00020519,2]
[349770311,1737419442831,-707.97,0.00020519,2]
[349770312,1737419442840,-500.0,0.00020519,2]
[349770313,1737419442851,-500.0,0.00020519,2]
[349770314,1737419442865,-1419.24,0.00020519,2]
[349770315,1737419442875,-237.43690808,0.00020519,2]
[349770316,1737419442886,-501.26556365,0.00020519,2]
[349770317,1737419442895,-500.0,0.00020519,2]
[349770318,1737419442904,-536.22040271,0.00020519,2]
[349770319,1737419442913,-500.0,0.00020519,2]
[349770320,1737419442923,-187.67060877,0.00020519,2]
[349770321,1737419442932,-661.24,0.00020519,2]
[349770322,1737419442941,-153.14,0.00020537,2]
[349770323,1737419442950,-500.0,0.00020547,2]
[349770324,1737419442960,-928.62,0.00020547,2]
[349770325,1737419442969,-1662.47,0.00020547,2]
[349770326,1737419442979,-852.81,0.00020547,2]
[349770327,1737419442989,-647.99,0.00020547,2]
[349770328,1737419442999,-1964.8,0.00020547,2]
[349770329,1737419443008,-1260.29,0.00020547,2]
[349770331,1737419443018,-1244.44,0.00020547,2]
[349770333,1737419443028,-1302.24,0.00020547,2]
[349770334,1737419443038,-500.0,0.00020547,2]
[349770335,1737419443048,-918.21,0.00020547,2]
[349770336,1737419443057,-886.03,0.00020547,2]
[349770337,1737419443067,-2259.37,0.00020547,2]
[349770338,1737419443076,-1757.4,0.00020547,2]
[349770339,1737419443086,-1001.14,0.00020547,2]
[349770341,1737419443095,-1034.05,0.00020547,2]
[349770343,1737419443105,-500.0,0.00020547,2]
[349770344,1737419443114,-500.0,0.00020547,2]
[349770345,1737419443126,-2979.95,0.00020547,2]
[349770346,1737419443136,-500.0,0.00020547,2]
[349770347,1737419443145,-500.0,0.00020547,2]
[349770349,1737419443155,-773.56,0.00020547,2]
[349770350,1737419443165,-500.0,0.00020547,2]
[349770352,1737419443174,-873.7,0.00020547,2]
[349770354,1737419443184,-1439.56,0.00020547,2]
[349770355,1737419443194,-500.0,0.00020547,2]
[349770356,1737419443204,-500.0,0.00020547,2]
[349770357,1737419443213,-500.0,0.00020547,2]
[349770358,1737419443223,-500.0,0.00020547,2]
[349770359,1737419443232,-500.0,0.00020547,2]
[349770360,1737419443241,-500.0,0.00020547,2]
[349770361,1737419443250,-2761.08,0.00020547,2]
[349770362,1737419443259,-500.0,0.00020547,2]
[349770363,1737419443268,-500.0,0.00020547,2]
[349770364,1737419443278,-500.0,0.00020547,2]
[349770365,1737419443288,-171.261219,0.00020596,2]
[349770366,1737419443298,-500.0,0.00020618,2]
[349770367,1737419443307,-910.58,0.00020618,2]
[349770368,1737419443317,-589.02,0.00020618,2]
[349770369,1737419443326,-500.0,0.00020618,2]
[349770370,1737419443336,-500.0,0.00020618,2]
[349770371,1737419443345,-1187.29,0.00020618,2]
[349770372,1737419443355,-500.0,0.00020618,2]
[349770373,1737419443364,-370.441614,0.00020618,2]
[349770374,1737419443375,-500.0,0.00020618,2]
[349770375,1737419443385,-855.81,0.00020618,2]
[349770376,1737419443395,-500.0,0.00020618,2]
[349770377,1737419443405,-626.503501,0.00020618,2]
[349770378,1737419443414,-500.0,0.00020618,2]
[349770379,1737419443424,-500.0,0.00020618,2]
[349770380,1737419443434,-156.138685,0.00020618,2]
[349770381,1737419443443,-526.89,0.00020618,2]
[349770382,1737419443453,-1426.85,0.00020618,2]
[349770383,1737419443462,-713.77,0.00020618,2]
[349770384,1737419443472,-1128.17,0.00020618,2]
[349770385,1737419443482,-603.78,0.00020618,2]
[349770386,1737419443492,-155.24774,0.00020618,2]
[349770387,1737419443501,-500.0,0.00020618,2]
[349770388,1737419443511,-500.0,0.00020618,2]
[349770389,1737419443521,-2410.56,0.00020618,2]
[349770390,1737419443531,-229.605329,0.00020618,2]
[349770391,1737419443542,-1787.76,0.00020618,2]
[349770392,1737419443552,-1214.36,0.00020618,2]
[349770393,1737419443562,-904.45,0.00020618,2]
[349770394,1737419443572,-1963.56,0.00020618,2]
[349770395,1737419443582,-2104.66,0.00020618,2]
[349770396,1737419443592,-523.46,0.00020618,2]
[349770397,1737419443601,-160.506551,0.00020618,2]
[349770398,1737419443611,-500.0,0.00020618,2]
[349770399,1737419443621,-1392.11,0.00020618,2]
[349770400,1737419443633,-1119.74,0.00020618,2]
[349770401,1737419443642,-159.243379,0.00020618,2]
[349770402,1737419443653,-2596.32,0.00020618,2]
[349770404,1737419443791,-1001.31,0.00020618,2]
[349770405,1737419443817,-154.234305,0.00020618,2]
[349770406,1737419443827,-209.023691,0.00020618,2]
[349770407,1737419443837,-158.502983,0.00020618,2]
[349770408,1737419443847,-1158.41,0.00020618,2]
[349770409,1737419443859,-158.451087,0.00020618,2]
[349770410,1737419443869,-909.85,0.00020618,2]
[349770411,1737419443881,-500.0,0.00020619,2]
[349770412,1737419443891,-500.0,0.00020619,2]
[349770413,1737419443902,-500.0,0.00020619,2]
[349770414,1737419443912,-500.0,0.00020619,2]
[349770415,1737419443922,-500.0,0.00020619,2]
[349770416,1737419443932,-500.0,0.00020619,2]
[349770417,1737419443942,-500.0,0.00020619,2]
[349770418,1737419443951,-500.0,0.00020619,2]
[349770419,1737419443961,-500.0,0.00020619,2]
[349770420,1737419443971,-500.0,0.00020619,2]
[349770421,1737419443981,-500.0,0.00020619,2]
[349770422,1737419443990,-500.0,0.00020619,2]
[349770423,1737419444000,-500.0,0.00020619,2]
[349770424,1737419444010,-500.0,0.00020619,2]
[349770425,1737419444019,-500.0,0.00020619,2]
[349770426,1737419444028,-500.0,0.00020619,2]
[349770427,1737419444038,-500.0,0.00020619,2]
[349770428,1737419444047,-500.0,0.00020619,2]
[349770429,1737419444057,-500.0,0.00020619,2]
[349770430,1737419444066,-200.0,0.00020619,2]
[349770431,1737419444075,-500.0,0.00020619,2]
[349770432,1737419444085,-314.00606887,0.00020619,2]
[349770433,1737419444095,-500.0,0.00020619,2]
[349770434,1737419444104,-500.0,0.00020619,2]
[349770435,1737419444113,-500.0,0.00020619,2]
[349770436,1737419444123,-500.0,0.00020619,2]
[349770437,1737419444133,-500.0,0.00020619,2]
[349770438,1737419444142,-500.0,0.00020619,2]
[349770439,1737419444151,-515.23561721,0.00020619,2]
[349770440,1737419444161,-500.0,0.00020619,2]
[349770441,1737419444170,-358.38297386,0.00020619,2]
[349770442,1737419444179,-500.0,0.00020619,2]
[349770443,1737419444188,-500.0,0.00020619,2]
[349770444,1737419444198,-500.0,0.00020619,2]
[349770445,1737419444207,-500.0,0.00020619,2]
[349770446,1737419444216,-500.0,0.00020619,2]
[349770447,1737419444225,-500.0,0.00020619,2]
[349770448,1737419444234,-500.0,0.00020619,2]
[349770449,1737419444244,-250.80157353,0.00020619,2]
[349770450,1737419444253,-500.0,0.00020619,2]
[349770451,1737419444262,-500.0,0.00020619,2]
[349770452,1737419444271,-500.0,0.00020619,2]
[349770453,1737419444281,-500.0,0.00020619,2]
[349770454,1737419444290,-500.0,0.00020619,2]
[349770455,1737419444300,-500.0,0.00020619,2]
[349770456,1737419444309,-500.0,0.00020619,2]
[349770457,1737419444319,-500.0,0.00020619,2]
[349770458,1737419444328,-500.0,0.00020619,2]
[349770459,1737419444339,-500.0,0.00020619,2]
[349770460,1737419444348,-500.0,0.00020619,2]
[349770461,1737419444357,-500.0,0.00020619,2]
[349770462,1737419444366,-500.0,0.00020619,2]
[349770463,1737419444376,-500.0,0.00020619,2]
[349770464,1737419444385,-500.0,0.00020619,2]
[349770465,1737419444395,-500.0,0.00020619,2]
[349770466,1737419444404,-500.0,0.00020619,2]
[349770467,1737419444414,-500.0,0.00020619,2]
[349770468,1737419444423,-500.0,0.00020619,2]
[349770469,1737419444432,-500.0,0.00020619,2]
[349770470,1737419444441,-500.0,0.00020619,2]
[349770471,1737419444451,-555.19356137,0.00020619,2]
[349770472,1737419444462,-500.0,0.00020619,2]
[349770473,1737419444472,-500.0,0.00020619,2]
[349770474,1737419444481,-500.0,0.00020619,2]
[349770475,1737419444492,-500.0,0.00020619,2]
[349770476,1737419444501,-500.0,0.00020619,2]
[349770477,1737419444511,-500.0,0.00020619,2]
[349770478,1737419444521,-500.0,0.00020619,2]
[349770479,1737419444531,-500.0,0.00020619,2]
[349770480,1737419444541,-460.0,0.0002063,2]
[349770481,1737419444551,-328.80498662,0.00020659,2]
[349770482,1737419444561,-500.0,0.00020693,2]
[349770483,1737419444571,-500.0,0.00020693,2]
[349770484,1737419444581,-500.0,0.00020693,2]
[349770485,1737419444590,-500.0,0.00020693,2]
[349770486,1737419444601,-486.89,0.00020693,2]
[349770487,1737419444610,-375.33944656,0.00020792,2]
[349770488,1737419444621,-500.0,0.00020792,2]
[349770489,1737419444635,-500.0,0.00020792,2]
[349770490,1737419444645,-500.0,0.00020792,2]
[349770491,1737419444655,-500.0,0.00020792,2]
[349770492,1737419444665,-500.0,0.00020792,2]
[349770493,1737419444675,-623.78,0.00020792,2]
[349770494,1737419444684,-500.0,0.00020792,2]
[349770495,1737419444694,-500.0,0.00020792,2]
[349770496,1737419444704,-500.0,0.00020792,2]
[349770497,1737419444714,-500.0,0.00020792,2]
[349770498,1737419444723,-500.0,0.00020792,2]
[349770499,1737419444733,-500.0,0.00020792,2]
[349770500,1737419444742,-500.0,0.00020792,2]
[349770501,1737419444751,-500.0,0.00020792,2]
[349770502,1737419444760,-500.0,0.00020792,2]
[349770503,1737419444770,-500.0,0.00020792,2]
[349770504,1737419444779,-500.0,0.00020792,2]
[349770505,1737419444788,-2184.25,0.00020792,2]
[349770506,1737419444798,-500.0,0.00020792,2]
[349770507,1737419444808,-500.0,0.00020792,2]
[349770508,1737419444818,-500.0,0.00020792,2]
[349770509,1737419444828,-500.0,0.00020792,2]
[349770510,1737419444838,-500.0,0.00020792,2]
[349770511,1737419444848,-500.0,0.00020792,2]
[349770512,1737419444862,-3209.35,0.00020792,2]
[349770513,1737419444871,-500.0,0.00020792,2]
[349770514,1737419444886,-500.0,0.00020792,2]
[349770515,1737419444896,-500.0,0.00020792,2]
[349770516,1737419444907,-500.0,0.00020792,2]
[349770517,1737419444916,-500.0,0.00020792,2]
[349770518,1737419444927,-500.0,0.00020792,2]
[349770519,1737419444937,-500.0,0.00020792,2]
[349770520,1737419444948,-500.0,0.00020792,2]
[349770521,1737419444957,-610.94329177,0.00020792,2]
[349770522,1737419444966,-500.0,0.00020792,2]
[349770523,1737419444976,-2028.93,0.00020792,2]
[349770524,1737419444985,-500.0,0.00020792,2]
[349770525,1737419444995,-500.0,0.00020792,2]
[349770526,1737419445004,-500.0,0.00020792,2]
[349770527,1737419445014,-500.0,0.00020792,2]
[349770528,1737419445025,-543.51,0.00020792,2]
[349770529,1737419445035,-1683.76,0.00020792,2]
[349770530,1737419445045,-500.0,0.00020792,2]
[349770531,1737419445055,-500.0,0.00020792,2]
[349770532,1737419445065,-500.0,0.00020792,2]
[349770533,1737419445074,-500.0,0.00020792,2]
[349770534,1737419445083,-500.0,0.00020792,2]
[349770535,1737419445093,-500.0,0.00020792,2]
[349770536,1737419445103,-500.0,0.00020792,2]
[349770537,1737419445113,-572.56,0.00020792,2]
[349770538,1737419445124,-500.0,0.00020793,2]
[349770539,1737419445136,-500.0,0.00020793,2]
[349770540,1737419445145,-500.0,0.00020793,2]
[349770541,1737419445155,-500.0,0.00020793,2]
[349770542,1737419445164,-500.0,0.00020793,2]
[349770543,1737419445173,-500.0,0.00020793,2]
[349770544,1737419445182,-500.0,0.00020793,2]
[349770545,1737419445191,-500.0,0.00020793,2]
[349770546,1737419445201,-565.48,0.00020793,2]
[349770547,1737419445211,-500.0,0.00020793,2]
[349770548,1737419445220,-500.0,0.00020793,2]
[349770549,1737419445229,-1097.21,0.00020793,2]
[349770550,1737419445239,-2424.54,0.00020793,2]
[349770551,1737419445248,-732.06,0.00020793,2]
[349770552,1737419445257,-500.0,0.00020793,2]
[349770553,1737419445266,-500.0,0.00020793,2]
[349770554,1737419445275,-1674.8,0.00020793,2]
[349770555,1737419445284,-500.0,0.00020793,2]
[349770556,1737419445294,-908.71,0.00020793,2]
[349770557,1737419445303,-1534.82,0.00020793,2]
[349770558,1737419445312,-500.0,0.00020793,2]
[349770559,1737419445321,-950.83,0.00020793,2]
[349770560,1737419445331,-500.0,0.00020793,2]
[349770561,1737419445344,-748.94,0.00020793,2]
[349770562,1737419445353,-527.23,0.00020793,2]
[349770563,1737419445362,-1112.81,0.00020793,2]
[349770564,1737419445373,-847.73,0.00020793,2]
[349770565,1737419445386,-2428.48,0.00020793,2]
[349770566,1737419445396,-1119.66,0.00020793,2]
[349770567,1737419445406,-1036.96,0.00020793,2]
[349770568,1737419445415,-500.0,0.00020793,2]
[349770569,1737419445425,-1562.21,0.00020793,2]
[349770570,1737419445435,-1000.0,0.00020793,2]
[349770571,1737419445445,-1223.32,0.00020793,2]
[349770572,1737419445455,-500.0,0.00020793,2]
[349770573,1737419445464,-546.59,0.00020793,2]
[349770574,1737419445475,-1208.2,0.00020793,2]
[349770575,1737419445485,-500.0,0.00020793,2]
[349770576,1737419445495,-1831.04,0.00020793,2]
[349770577,1737419445505,-500.0,0.00020793,2]
[349770578,1737419445516,-500.0,0.00020793,2]
[349770579,1737419445526,-500.0,0.00020793,2]
[349770580,1737419445536,-1465.95,0.00020793,2]
[349770581,1737419445546,-1779.14,0.00020793,2]
[349770582,1737419445555,-500.0,0.00020793,2]
[349770583,1737419445565,-707.97,0.00020793,2]
[349770584,1737419445574,-500.0,0.00020793,2]
[349770585,1737419445584,-500.0,0.00020793,2]
[349770586,1737419445594,-1419.24,0.00020793,2]
[349770587,1737419445603,-500.0,0.00020793,2]
[349770588,1737419445613,-500.0,0.00020793,2]
[349770589,1737419445622,-661.24,0.00020793,2]
[349770590,1737419445636,-1716.0,0.000208,2]
[349770591,1737419445646,-559.3320959,0.00020821,2]
[349770592,1737419445656,-928.62,0.00020821,2]
[349770593,1737419445666,-1662.47,0.00020821,2]
[349770594,1737419445676,-852.81,0.00020821,2]
[349770595,1737419445686,-647.99,0.00020821,2]
[349770596,1737419445696,-1964.8,0.00020821,2]
[349770597,1737419445706,-1260.29,0.00020821,2]
[349770598,1737419445716,-1244.44,0.00020821,2]
[349770599,1737419445725,-1302.24,0.00020821,2]
[349770600,1737419445735,-500.0,0.00020821,2]
[349770601,1737419445745,-918.21,0.00020821,2]
[349770602,1737419445755,-886.03,0.00020821,2]
[349770603,1737419445764,-2259.37,0.00020821,2]
[349770604,1737419445774,-1757.4,0.00020821,2]
[349770605,1737419445784,-1001.14,0.00020821,2]
[349770606,1737419445793,-1034.05,0.00020821,2]
[349770607,1737419445802,-500.0,0.00020821,2]
[349770608,1737419445812,-500.0,0.00020821,2]
[349770609,1737419445821,-2979.95,0.00020821,2]
[349770610,1737419445831,-500.0,0.00020821,2]
[349770611,1737419445841,-500.0,0.00020821,2]
[349770612,1737419445852,-773.56,0.00020821,2]
[349770613,1737419445864,-500.0,0.00020821,2]
[349770614,1737419445877,-873.7,0.00020821,2]
[349770615,1737419445886,-1439.56,0.00020821,2]
[349770616,1737419445896,-234.40756801,0.00020821,2]
[349770617,1737419445906,-500.0,0.00020821,2]
[349770618,1737419445916,-500.0,0.00020821,2]
[349770619,1737419445926,-500.0,0.00020821,2]
[349770620,1737419445936,-500.0,0.00020821,2]
[349770622,1737419445945,-500.0,0.00020821,2]
[349770624,1737419445955,-2761.08,0.00020821,2]
[349770626,1737419445963,-500.0,0.00020821,2]
[349770628,1737419445973,-500.0,0.00020821,2]
[349770630,1737419445982,-500.0,0.00020821,2]
[349770632,1737419445992,-500.0,0.00020822,2]
[349770633,1737419446002,-220.0,0.00020867,2]
[349770634,1737419446012,-500.0,0.00020892,2]
[349770635,1737419446022,-910.58,0.00020892,2]
[349770637,1737419446031,-589.02,0.00020892,2]
[349770638,1737419446041,-500.0,0.00020892,2]
[349770640,1737419446050,-500.0,0.00020892,2]
[349770642,1737419446060,-1187.29,0.00020892,2]
[349770644,1737419446070,-500.0,0.00020892,2]
[349770646,1737419446080,-370.441614,0.00020892,2]
[349770648,1737419446089,-855.81,0.00020892,2]
[349770650,1737419446099,-500.0,0.00020892,2]
[349770653,1737419446110,-626.503501,0.00020892,2]
[349770655,1737419446119,-500.0,0.00020892,2]
[349770657,1737419446131,-526.89,0.00020892,2]
[349770658,1737419446140,-1426.85,0.00020892,2]
[349770659,1737419446150,-713.77,0.00020892,2]
[349770660,1737419446160,-1128.17,0.00020892,2]
[349770661,1737419446169,-603.78,0.00020892,2]
[349770662,1737419446181,-155.24774,0.00020892,2]
[349770663,1737419446190,-500.0,0.00020892,2]
[349770664,1737419446199,-500.0,0.00020892,2]
[349770665,1737419446210,-2410.56,0.00020892,2]
[349770666,1737419446219,-229.605329,0.00020892,2]
[349770667,1737419446228,-1787.76,0.00020892,2]
[349770668,1737419446238,-1214.36,0.00020892,2]
[349770669,1737419446247,-904.45,0.00020892,2]
[349770670,1737419446256,-1963.56,0.00020892,2]
[349770671,1737419446265,-2104.66,0.00020892,2]
[349770672,1737419446277,-523.46,0.00020892,2]
[349770673,1737419446290,-160.506551,0.00020892,2]
[349770674,1737419446299,-500.0,0.00020892,2]
[349770675,1737419446309,-1392.11,0.00020892,2]
[349770676,1737419446318,-1119.74,0.00020892,2]
[349770677,1737419446327,-159.243379,0.00020892,2]
[349770678,1737419446336,-2596.32,0.00020892,2]
[349770679,1737419446346,-1001.31,0.00020892,2]
[349770680,1737419446355,-209.023691,0.00020892,2]
[349770681,1737419446364,-1158.41,0.00020892,2]
[349770682,1737419446373,-909.85,0.00020892,2]
[349770683,1737419446383,-194.31058526,0.00020893,2]
[349770684,1737419446392,-500.0,0.00020893,2]
[349770685,1737419446402,-194.85214388,0.00020893,2]
[349770686,1737419446411,-500.0,0.00020893,2]
[349770687,1737419446421,-526.32024082,0.00020893,2]
[349770688,1737419446430,-500.0,0.00020893,2]
[349770689,1737419446440,-500.0,0.00020893,2]
[349770690,1737419446449,-500.0,0.00020893,2]
[349770691,1737419446460,-192.01320334,0.00020893,2]
[349770692,1737419446470,-500.0,0.00020893,2]
[349770693,1737419446484,-500.0,0.00020893,2]
[349770694,1737419446493,-500.0,0.00020893,2]
[349770695,1737419446502,-500.0,0.00020893,2]
[349770696,1737419446512,-500.0,0.00020893,2]
[349770697,1737419446521,-500.0,0.00020893,2]
[349770698,1737419446530,-500.0,0.00020893,2]
[349770699,1737419446539,-500.0,0.00020893,2]
[349770700,1737419446548,-500.0,0.00020893,2]
[349770701,1737419446557,-500.0,0.00020893,2]
[349770702,1737419446566,-500.0,0.00020893,2]
[349770703,1737419446575,-500.0,0.00020893,2]
[349770704,1737419446584,-606.67261308,0.00020893,2]
[349770705,1737419446593,-505.65404367,0.00020893,2]
[349770706,1737419446602,-500.0,0.00020893,2]
[349770707,1737419446612,-500.0,0.00020893,2]
[349770708,1737419446622,-500.0,0.00020893,2]
[349770709,1737419446633,-500.0,0.00020893,2]
[349770710,1737419446643,-500.0,0.00020893,2]
[349770711,1737419446652,-500.0,0.00020893,2]
[349770712,1737419446662,-500.0,0.00020893,2]
[349770713,1737419446671,-500.0,0.00020893,2]
[349770714,1737419446680,-500.0,0.00020893,2]
[349770716,1737419446689,-18623.87273194,0.00020898,2]
[349770718,1737419446699,-161.362,0.000209,2]
[349770720,1737419446708,-443.7,0.00020967,2]
[349770722,1737419446717,-508.07781323,0.00020967,2]
[349770724,1737419446726,-500.0,0.00020967,2]
[349770726,1737419446735,-500.0,0.00020967,2]
[349770728,1737419446744,-328.80498662,0.00020969,2]
[349770730,1737419446753,-500.21107376,0.00020973,2]
[349770732,1737419446763,-150.95800678,0.00020973,2]
[349770734,1737419446772,-500.0,0.00020973,2]
[349770736,1737419446781,-204.56880951,0.00020973,2]
[349770749,1737419446790,-362.94287197,0.00021,2]
[349770751,1737419446929,-141299.4638728,0.00021,2]
[349770752,1737419446940,-20393.43280063,0.00021,3]
[349770753,1737419446951,-2880.05055062,0.00021,3]
[349770754,1737419446960,-26626.25156989,0.00021,2]
[349770755,1737419446969,-500.0,0.00021066,2]
[349770756,1737419446978,-500.0,0.00021066,2]
[349770757,1737419446988,-500.0,0.00021066,2]
[349770758,1737419446997,-500.0,0.00021066,2]
[349770759,1737419447007,-500.0,0.00021066,2]
[349770760,1737419447016,-500.0,0.00021066,2]
[349770761,1737419447026,-500.0,0.00021066,2]
[349770762,1737419447035,-500.0,0.00021066,2]
[349770763,1737419447044,-500.0,0.00021066,2]
[349770764,1737419447054,-500.0,0.00021066,2]
[349770765,1737419447063,-500.0,0.00021066,2]
[349770766,1737419447073,-500.0,0.00021066,2]
[349770767,1737419447082,-500.0,0.00021066,2]
[349770768,1737419447091,-500.0,0.00021066,2]
[349770769,1737419447100,-500.0,0.00021066,2]
[349770770,1737419447109,-500.0,0.00021066,2]
[349770771,1737419447118,-2184.25,0.00021066,2]
[349770772,1737419447130,-500.0,0.00021066,2]
[349770773,1737419447139,-500.0,0.00021066,2]
[349770774,1737419447148,-500.0,0.00021066,2]
[349770775,1737419447158,-508.14586867,0.00021066,2]
[349770776,1737419447167,-500.0,0.00021066,2]
[349770777,1737419447176,-3209.35,0.00021066,2]
[349770778,1737419447186,-500.0,0.00021066,2]
[349770779,1737419447195,-500.0,0.00021066,2]
[349770780,1737419447205,-500.0,0.00021066,2]
[349770781,1737419447215,-500.0,0.00021066,2]
[349770782,1737419447225,-500.0,0.00021066,2]
[349770783,1737419447234,-500.0,0.00021066,2]
[349770784,1737419447244,-500.0,0.00021066,2]
[349770785,1737419447253,-500.0,0.00021066,2]
[349770786,1737419447263,-500.0,0.00021066,2]
[349770787,1737419447275,-2028.93,0.00021066,2]
[349770788,1737419447284,-500.0,0.00021066,2]
[349770789,1737419447293,-500.0,0.00021066,2]
[349770790,1737419447303,-500.0,0.00021066,2]
[349770791,1737419447312,-500.0,0.00021066,2]
[349770792,1737419447321,-543.51,0.00021066,2]
[349770793,1737419447330,-1683.76,0.00021066,2]
[349770794,1737419447339,-500.0,0.00021066,2]
[349770795,1737419447348,-500.0,0.00021066,2]
[349770796,1737419447357,-500.0,0.00021066,2]
[349770797,1737419447366,-500.0,0.00021066,2]
[349770798,1737419447379,-500.0,0.00021066,2]
[349770799,1737419447389,-500.0,0.00021066,2]
[349770800,1737419447398,-572.56,0.00021066,2]
[349770801,1737419447408,-500.0,0.00021067,2]
[349770802,1737419447418,-500.0,0.00021067,2]
[349770803,1737419447427,-500.0,0.00021067,2]
[349770804,1737419447437,-500.0,0.00021067,2]
[349770805,1737419447447,-500.0,0.00021067,2]
[349770806,1737419447456,-500.0,0.00021067,2]
[349770807,1737419447465,-500.0,0.00021067,2]
[349770808,1737419447474,-500.0,0.00021067,2]
[349770809,1737419447485,-565.48,0.00021067,2]
[349770810,1737419447494,-500.0,0.00021067,2]
[349770811,1737419447504,-1097.21,0.00021067,2]
[349770812,1737419447520,-2424.54,0.00021067,2]
[349770813,1737419447530,-732.06,0.00021067,2]
[349770814,1737419447539,-500.0,0.00021067,2]
[349770815,1737419447549,-500.0,0.00021067,2]
[349770816,1737419447557,-1674.8,0.00021067,2]
[349770817,1737419447566,-500.0,0.00021067,2]
[349770818,1737419447576,-908.71,0.00021067,2]
[349770819,1737419447585,-1534.82,0.00021067,2]
[349770820,1737419447595,-500.0,0.00021067,2]
[349770821,1737419447604,-950.83,0.00021067,2]
[349770822,1737419447614,-500.0,0.00021067,2]
[349770823,1737419447623,-748.94,0.00021067,2]
[349770824,1737419447637,-527.23,0.00021067,2]
[349770825,1737419447647,-1112.81,0.00021067,2]
[349770826,1737419447656,-847.73,0.00021067,2]
[349770827,1737419447665,-2428.48,0.00021067,2]
[349770828,1737419447674,-1119.66,0.00021067,2]
[349770829,1737419447683,-1036.96,0.00021067,2]
[349770830,1737419447696,-500.0,0.00021067,2]
[349770831,1737419447708,-1562.21,0.00021067,2]
[349770832,1737419447717,-1000.0,0.00021067,2]
[349770833,1737419447727,-1223.32,0.00021067,2]
[349770834,1737419447738,-500.0,0.00021067,2]
[349770835,1737419447748,-546.59,0.00021067,2]
[349770836,1737419447757,-1208.2,0.00021067,2]
[349770837,1737419447766,-500.0,0.00021067,2]
[349770838,1737419447776,-1831.04,0.00021067,2]
[349770839,1737419447786,-500.0,0.00021067,2]